Cogmind - Beta 10.2 --- EXPLORER MODE // 2020.12.17 @ 19:00:41 Player: Luigi Panache Result: Destroyed by D-53 Grenadier with Mini Grenade Launcher Performance ------------- Evolutions (0) 0 Regions Visited (2) 400 Robots Destroyed (9) 45 Value Destroyed (200) 200 Prototype IDs (0) 0 Alien Tech Used (0) 0 Bonus (0) 0 TOTAL SCORE: 645 Bonus ------- None Cogmind --------- Core Integrity 0/250 Matter 197/300 Energy 100/100 System Corruption 2% Temperature Cool (0) Movement Core (150) Ox2 Location -10/Mines Parts ------- > --- POWER (1) -------- (None) > --- PROPULSION (2) --- (None) > --- UTILITY (3) ------ Medium Storage Unit > --- WEAPON (2) ------- (None) > --- INVENTORY (8) ---- Ion Engine Light Treads Improved Signal Interpreter Utility Shielding Light Armor Plating Light Assault Rifle Grenade Launcher Peak State ------------ > --- POWER ------------ Ion Engine > --- PROPULSION ------- Light Treads Light Treads > --- UTILITY ---------- Medium Storage Unit Improved Terrain Scanner Seismic Analyzer > --- WEAPON ----------- Assault Rifle Assault Rifle > --- INVENTORY -------- Ion Engine Aluminum Leg Aluminum Leg Utility Shielding Light Armor Plating Light Assault Rifle [Rating: 9] Favorites ----------- Power Ion Engine Engine Ion Engine Propulsion Light Treads Treads Light Treads Leg Aluminum Leg Utility Medium Storage Unit Device Improved Terrain Scanner Storage Medium Storage Unit Processor Seismic Analyzer Protection Light Armor Plating Weapon Assault Rifle Ballistic Gun Assault Rifle Launcher Grenade Launcher Build | -11 -10 -10 ------- Run | Scr Mat Min Slots Evolved 1 | . 1 . Power . | . . . Propulsion . | . . . Utility 1 | . 1 . Weapon . | . . . Parts Attached 14 | 8 1 5 Power 1 | 1 . . Engine 1 | 1 . . Core . | . . . Reactor . | . . . Propulsion 3 | 2 . 1 Treads 2 | 2 . . Leg 1 | . . 1 Wheel . | . . . Hover . | . . . Flight . | . . . Utility 4 | 3 1 . Device 1 | 1 . . Storage 1 | 1 . . Processor 1 | . 1 . Hackware . | . . . Protection 1 | 1 . . Artifact . | . . . Weapon 6 | 2 . 4 Energy Gun . | . . . Energy Cannon . | . . . Ballistic Gun 4 | 2 . 2 Ballistic Cannon . | . . . Launcher 2 | . . 2 Special Weapon . | . . . Impact Weapon . | . . . Slashing Weapon . | . . . Piercing Weapon . | . . . Special Melee Weapon . | . . . Unidentified Prototypes . | . . . Parts Lost 8 | . . 8 Power 1 | . . 1 Propulsion 3 | . . 3 Utility 2 | . . 2 Weapon 2 | . . 2 Highest Loss Streak 8 | . . 8 Average Slot Usage (%) 97 | . 100 90 Engine 11 | . 12 10 Treads 23 | . 25 20 Device 11 | . 12 11 Storage 12 | . 12 12 Processor 11 | . 12 11 Ballistic Gun 23 | . 25 20 Naked Turns . | . . . Heaviest Build 20 | 20 18 19 Greatest Support 40 | 40 40 40 Greatest Overweight (x) 2 | . . 2 Average Overweight (x) . | . . . Largest Inventory Capacity 8 | 8 8 8 Average Capacity 7 | 7 8 8 Most Carried 8 | 7 8 8 Average Carried 6 | 3 7 7 Final Capacity 8 | 8 8 8 Final Carried 8 | 7 8 7 Class Distribution -------------------- 100% | Hacker-Mutant Dominant Class ---------------- Hacker-Mutant | -10/Materials Hacker-Mutant | -10/Mines Resources | -11 -10 -10 ----------- Run | Scr Mat Min Matter Collected 354 | 298 34 22 Remotely . | . . . Salvage Created 399 | 116 162 121 Parts 24 | 10 8 6 Haulers Intercepted 1 | . 1 . Recyclers Shooed . | . . . Parts Field Recycled . | . . . Retrieved Matter . | . . . Parts Self-Destructed . | . . . Prevented . | . . . Kills | -11 -10 -10 ------- Run | Scr Mat Min Combat Hostiles Destroyed 15 | . 2 13 Guns 5 | . 2 3 AOE 10 | . . 10 Classes Destroyed 6 | 2 3 1 Tunneler 2 | 2 . . Hauler 1 | . 1 . Recycler 1 | 1 . . Watcher 1 | . 1 . Grunt 4 | . 2 2 Assembled 11 | . . 11 Best Kill Streak 11 | 3 4 11 Combat Bots Only 11 | . 2 11 Max Kills in Single Turn 3 | 1 2 3 Gunslinging 1 | . 1 . Exploded 3 | . . 3 Melee . | . . . Uniques/NPCs Destroyed . | . . . Combat | -11 -10 -10 -------- Run | Scr Mat Min Damage Taken 1061 | . 24 1037 Core 250 | . . 250 Absorbed by Shields . | . . . Core Remaining (%) 100 | 100 . . Volleys Fired 26 | 3 4 19 Largest 2 | 2 2 2 Hottest 40 | 40 40 40 Shots Fired 36 | 6 8 22 Gun 29 | 6 8 15 Cannon . | . . . Launcher 7 | . . 7 Special . | . . . Kinetic 29 | 6 8 15 Thermal . | . . . Explosive 7 | . . 7 Electromagnetic . | . . . Robot Hit Streak 28 | 4 11 28 Robot Miss Streak 1 | 1 . 1 Penetration Max . | . . . Secondary Targets 2 | . 1 1 Max Gunslinging Chain 1 | . 1 1 Shots Hit Robots 32 | 4 7 21 Core Hits 38 | 3 6 29 Critical Hits . | . . . Critical Kills . | . . . Critical Parts Destroyed . | . . . Melee Attacks . | . . . Impact . | . . . Slashing . | . . . Piercing . | . . . Sneak Attacks . | . . . Combat Hostiles . | . . . Follow-up Attacks . | . . . Damage Inflicted 1048 | 53 91 904 Guns 323 | 53 91 179 Cannons . | . . . Explosions 725 | . . 725 Melee . | . . . Ramming . | . . . Kinetic 323 | 53 91 179 Thermal . | . . . Explosive 725 | . . 725 Electromagnetic . | . . . Impact . | . . . Slashing . | . . . Piercing . | . . . Highest Corruption 2 | . . 2 Average Corruption 2 | . . 2 Corruption Purged . | . . . Overload Shots . | . . . Overflow Damage 10 | . . 10 Projectiles . | . . . Explosions 10 | . . 10 Melee . | . . . Knockbacks . | . . . Impact . | . . . Kinetic . | . . . Secondary . | . . . Self-Inflicted Damage 62 | . . 62 Shots 3 | . . 3 Rammed . | . . . Targets Rammed . | . . . Kicked . | . . . Crushed . | . . . Highest Temperature 20 | . 3 20 Average Temperature 7 | . 2 9 Received Heat Transfer 85 | . 24 61 Siege Activations . | . . . Robots Corrupted . | . . . Combat Hostiles . | . . . Parts Fried . | . . . Impact Corruptions . | . . . Robots Melted . | . . . Combat Hostiles . | . . . Parts Melted . | . . . Heat Transferred . | . . . Parts Sabotaged . | . . . Parts Stolen . | . . . Parts Stripped . | . . . Power Chain Reactions . | . . . Missiles Intercepted . | . . . Alert | -11 -10 -10 ------- Run | Scr Mat Min Peak Influence 88 | 15 86 88 Initial 23 | . 7 23 Average 34 | 4 36 62 Maximum Alert Level . | . . . Low Security (%) 100 | 100 100 100 Level 1 . | . . . Level 2 . | . . . Level 3 . | . . . Level 4 . | . . . Level 5 . | . . . High Security . | . . . Max Security . | . . . Squads Dispatched . | . . . Investigation . | . . . Extermination . | . . . Reinforcement . | . . . Assault . | . . . Garrison . | . . . Intercept . | . . . Construction Impeded . | . . . Haulers Reinforced . | . . . Stealth | -11 -10 -10 --------- Run | Scr Mat Min Distress Signals . | . . . Communications Jammed . | . . . Distress Signals . | . . . Times Spotted 27 | . 3 24 Peak Tracking Total 9 | . 2 9 Tactical Retreats . | . . . Traps | -11 -10 -10 ------- Run | Scr Mat Min Traps Triggered . | . . . Indirectly . | . . . Trap Hack Attempts . | . . . Triggered . | . . . Disarmed . | . . . Reprogrammed . | . . . Reused . | . . . Traps Extracted . | . . . Installed . | . . . Triggered . | . . . Machines | -11 -10 -10 ---------- Run | Scr Mat Min Machines Disabled . | . . . Max in Single Turn . | . . . Machines Sabotaged . | . . . Garrisons Compromised . | . . . Overloaded Fab Kills . | . . . Fab Network Shutdowns . | . . . Hacking | -11 -10 -10 --------- Run | Scr Mat Min Machines Accessed 2 | . 2 . Terminals 2 | . 2 . Fabricators . | . . . Repair Stations . | . . . Recycling Units . | . . . Scanalyzers . | . . . Garrison Access . | . . . Total Hacks 6 | . 6 . Successful 4 | . 4 . Failed 2 | . 2 . Catastrophic 1 | . 1 . Database Lockouts . | . . . Manual 6 | . 6 . Terminals 6 | . 6 . Fabricators . | . . . Repair Stations . | . . . Recycling Units . | . . . Scanalyzers . | . . . Garrison Access . | . . . Terminal Hacks 2 | . 2 . Terminal Index 1 | . 1 . Zone Layout 1 | . 1 . Fabricator Hacks . | . . . Repair Station Hacks . | . . . Recycling Unit Hacks . | . . . Scanalyzer . | . . . Garrison Access Hacks . | . . . Unauthorized Hacks 2 | . 2 . Terminals 2 | . 2 . Botnet 2 | . 2 . Fabricators . | . . . Repair Stations . | . . . Recycling Units . | . . . Scanalyzers . | . . . Garrison Access . | . . . Data Cores Recovered . | . . . Used . | . . . Hacking Detections 2 | . 2 . Full Trace Events 1 | . 1 . Feedback Events . | . . . Feedback Blocked . | . . . Robot Schematics Acquired . | . . . Robots Built . | . . . Matter . | . . . Time . | . . . Total Robot Build Rating . | . . . Part Schematics Acquired . | . . . Parts Built . | . . . Matter . | . . . Time . | . . . Total Part Build Rating . | . . . Parts Repaired . | . . . Time . | . . . Parts Recycled . | . . . Recycled Matter . | . . . Retrieved Matter . | . . . Retrieved Components . | . . . Parts Scanalyzed . | . . . Part Schematics Acquired . | . . . Parts Damaged . | . . . Bothacking | -11 -10 -10 ------------ Run | Scr Mat Min Used RIF Installer . | . . . Robots Hacked . | . . . Non-combat . | . . . Combat . | . . . Robot Hacks Applied . | . . . Relay Couplers Released . | . . . Robots Rewired . | . . . Allies Hacked . | . . . Hacks Repelled . | . . . Allies | -11 -10 -10 -------- Run | Scr Mat Min Total Allies . | . . . Largest Group . | . . . Highest-Rated Group . | . . . Highest-Rated Ally . | . . . Total Orders . | . . . Ally Attacks . | . . . Total Damage . | . . . Kills . | . . . Allies Corrupted . | . . . Allies Melted . | . . . Intel | -11 -10 -10 ------- Run | Scr Mat Min Robot Analysis Total . | . . . Derelict Logs Recovered . | . . . Drone Launches . | . . . Drone Recoveries . | . . . Exploration | -11 -10 -10 ------------- Run | Scr Mat Min Turns Passed 556 | 138 294 124 Spaces Moved 295 | 72 174 49 Core 7 | 3 . 4 Treads 283 | 69 174 40 Legs 5 | . . 5 Wheels . | . . . Hover . | . . . Flight . | . . . Fastest Speed 50 | 50 160 120 Average Speed 158 | 155 160 155 Slowest Speed 160 | 160 160 160 Overloaded Moves . | . . . Propulsion Burnouts . | . . . Robots Hopped . | . . . Cave-ins Triggered 1 | . . 1 Exploration Rate (%) 22 | 6 41 20 Regions Visited 2 Branch Regions 1 Pre-discovered Areas . | . . . Known Exits Taken 2 | 1 1 . Unknown Exits Taken . | . . . Scrap Searched . | . . . Spaces Dug . | . . . Terrain Destroyed 44 | . . 44 Melee . | . . . Projectile . | . . . AOE 44 | . . 44 Terrain Rammed . | . . . Walls Destroyed . | . . . Machines Disabled . | . . . Actions | -11 -10 -10 --------- Run | Scr Mat Min Total 344 | 89 182 73 Wait . | . . . Move 293 | 71 173 49 Hop . | . . . Pick Up 9 | 6 3 . Fast Attach 8 | 8 . . Attach 2 | . 1 1 Detach 1 | 1 . . Swap 4 | . . 4 Drop 1 | . 1 . Fire 26 | 3 4 19 Melee . | . . . Ram . | . . . Kick . | . . . Crush . | . . . Escape Stasis . | . . . Rewire . | . . . Trap . | . . . Miscellaneous . | . . . Route ------- -11/Scrapyard -10/Materials -10/Mines History --------- Turn | Location | Event 16 | -11/Scrapyard | Identified exit to Materials 16 | -11/Scrapyard | Discovered exit to Materials (range 15) 139 | -11/Scrapyard | Entered Materials 139 | -10/Materials | Evolved 1 slot: Utility x1 312 | -10/Materials | Build established: Hacker-Mutant 364 | -10/Materials | Identified exit to Mines 364 | -10/Materials | Discovered exit to Mines (range 15) 433 | -10/Materials | Entered Mines 482 | -10/Mines | Assembled infested the area 542 | -10/Mines | Destroyed 11 combat bots 547 | -10/Mines | Crushed by falling debris 548 | -10/Mines | Core integrity fell below 50% 557 | -10/Mines | Core integrity fell below 20% 557 | -10/Mines | Destroyed by D-53 Grenadier with Mini Grenade Launcher Last Messages --------------- 00530_ K-01 Serf collects debris. 00533_ Lgt. Treads destroyed. 00536_ The unstable cave ceiling collapses. 00537_ K-01 Serf collects debris. 00539_ The unstable cave ceiling collapses. 00539_ Lgt. Treads destroyed. 00541_ The unstable cave ceiling collapses. 00541_ Assault Rifle destroyed. 00542_ The unstable cave ceiling collapses. 00543_ Assault Rifle destroyed. 00545_ Imp. Terrain Scanner destroyed. 00546_ K-01 Serf collects debris. 00547_ The unstable cave ceiling collapses. 00547_ Crushed by falling debris. 00547_ Seismic Analyzer destroyed. 00547_ System corrupted by crushing effect (+2). 00548_ The unstable cave ceiling collapses. 00551_ Aluminum Leg destroyed. 00552_ K-01 Serf collects debris. 00557_ The unstable cave ceiling collapses. Map ----- +----------------------------------------------------+ | ??????????????????????????????????? | | ??????????????????????????????????? | | ??????????????????????????????????? | | ??????????????????????????????????? | | ??????????????????????????????????? | | ?????????????????????????????#????? | | ??????????????????????????????????? | | ??????????????????????????????????# | | ??????????????????????????????????# | | ????????????????????????? ?? ?????? | | ?????????????????????????""???? ??? | | ??????????????????????????" ??????? | | ???????????????????????#???????? | | ??????????#?????????????????????? ? | | ????????## ???????????#??????????? | | ????????# ??? ?#?#?#????????????? | | ????????# ""?? ??#?###?##?#??????? | | ???????## "?"??####???########??? | | ??????## "???? #???# #?##? | | ????### ??? #???# """ ##### | | ???## ????# #?#?# """ # | | ???# ????# #?#?# """ ## # | | ???? ###### #??## ## # | | ????#? # ## #??## ## # | | ???????# # ##### # # | | ???????## @ #??######### | | ??#??#??# ###??###??### | | ????????# ##??###???# | | ???????# #?##?#???## | | ???????# #?#?###?## | | ???????## # ###?#??## | | ??????#?## d ###?### | | ?????#???# d #### | | ????#???### # # ## | | ???????#?## k | | ??????????## ## !* | | ???????#??# # %! %=%= | | ??????????# # * ! ### | | ??????????## # # # # ##?## | | ????????#?## ####### ## #?#?## | | ???????#???# #???#?######?####### | | ????????#?## #??#?#??##?#?????#?# | | ???????????? #?#?????????##?????## | | ???????????? ???#?##?????#????#??## | | ?????????????? ???#??#????#??#?#??? | | ???????????#?? ??????????? ? ?#?#?? | | ???????????????????#????? ??? ????? | | ?????????????##?? ?#???? ?????##?? | | ????????????????"??#?#??? ????????? | | ???????????????? ???? ???? ?? ???? | +----------------------------------------------------+ Best States ------------- Heat Dissipation 25 Energy Generation 10 Energy Capacity 250 Matter Stores 300 Matter Capacity 300 Sight Range 16 Terrain Scan Range 16 Terrain Scan Density 60 Armor Coverage 150 Resistance: KI 35 Resistance: TH 35 Resistance: EX 35 Resistance: EM 35 Resistance: I 35 Resistance: S 35 Resistance: P 35 Evasion (%) 40 Recoil Reduction 2 Offensive Hacking 20 Item Schematics ----------------- None Robot Schematics ------------------ None Fabricated ------------ Nothing Alien Tech Used ----------------- None Achievements -------------- None Challenges ------------ None Game ------ Seed RelayNeutrinoLauncher Manual? 0 Play Time 00:06:16 Cumulative 147.1 hours Start 2020.12.17 @ 18:55:58 End 2020.12.17 @ 19:00:41 Sessions 1 Manual Loads 0 Difficulty Explorer Special Mode None Game No. 124 Rogue 34 Adventurer 51 Explorer 39 Win Type - Total 8 Types 8/0/0/0/0/0/0/0/0 Lore% 58 Gallery% 73 Achievement% 57 Wizard Run 0 Options --------- ASCII 0 Keyboard 0 Movement Mouse Keybinds 0 Fullscreen 2 Font 18/TerminusBold Map View 76x50 Tactical HUD 1 Map Filters NONE Filters NONE Steam 1 RUN: 5a6b4aef-c7d4-4be1-b158-ab4c2326fc46